bitfinex/quotes_ETHUSD_20250210
["timestamp","ask_amount","ask_price","bid_price","bid_amount"]
[1739200981562,3.76913,2653.2,2652.2,0.7785]
[1739200981740,3.7692,2653.1,2652.5,0.7785]
[1739200981903,3.76949,2652.9,2652.5,0.7785]
[1739200982096,0.73923087,2653.2,2652.7,3.76963]
[1739200982302,3.76917,2653.1,2652.5,0.7785]
[1739200982499,3.76928,2653.1,2652.5,0.7785]
[1739200982940,3.76883,2653.4,2652.6,3.76981]
[1739200983126,4.54223584,2653.6,2652.7,0.81619173]
[1739200983327,0.77365584,2653.6,2653.4,3.76862]
[1739200983529,0.7976,2654.3,2653.5,0.81618385]
[1739200983837,0.75848167,2653.9,2653.6,3.76835]
[1739200984442,3.76743,2654.4,2653.7,0.0376795]
[1739200984651,4.01587,2654.6,2653.9,4.54642]
[1739200984843,0.2488,2654.6,2654.0,3.80555134]
[1739200985342,4.01587,2654.6,2654.0,0.03767134]
[1739200985839,0.2488,2654.6,2654.3,3.76734]
[1739200986049,0.2488,2654.6,2654.5,0.7785]
[1739200987337,0.2488,2654.6,2654.5,4.54568]
[1739200987511,0.2488,2654.6,2654.5,4.58334455]
[1739200988251,0.2488,2654.6,2654.5,13.44334455]
[1739200988557,0.2488,2654.6,2654.5,13.40568]
[1739200988923,0.2488,2654.6,2654.5,16.40568]
[1739200990515,0.2488,2654.6,2654.5,16.52001773]
[1739200990851,0.2488,2654.6,2654.5,17.17001773]
[1739200991571,0.2488,2654.6,2654.5,16.52001773]
[1739200992412,0.2488,2654.6,2654.5,17.27059739]
[1739200993767,4.56247,2656.2,2655.5,4.53065]
[1739200994072,3.7645,2656.4,2655.7,3.76539]
[1739200994257,3.7645,2656.4,2655.8,0.03764556]
[1739200994428,3.7645,2656.4,2655.8,0.14928606]
[1739200994763,3.76478,2656.2,2655.8,0.1116405]
[1739200994936,3.76506,2656.0,2655.5,9.6249]
[1739200995266,3.76506,2656.0,2655.6,0.14939402]
[1739200995464,3.76484,2656.2,2655.6,0.11174256]
[1739200995674,4.53125,2656.4,2655.7,0.03764866]
[1739200995853,4.51025997,2656.6,2655.9,3.76511]
[1739200996061,3.76439,2656.5,2656.0,8.86]
[1739200996363,3.76428,2656.6,2656.0,8.97138265]
[1739200996565,6.76402,2656.8,2656.0,8.97138265]
[1739200996733,3.76423,2656.6,2656.1,8.86]
[1739200996936,3.76406,2656.7,2656.1,8.86]
[1739200997183,3.76406,2656.7,2656.2,0.11119674]
[1739200997557,3.76426,2656.6,2656.2,0.11119674]
[1739200997866,3.76406,2656.7,2656.2,0.11119674]
[1739200998246,3.76436,2656.5,2656.2,0.11119674]
[1739200999157,3.76463,2656.3,2656.2,0.11119674]
[1739200999554,3.76463,2656.3,2655.8,0.7649]
[1739200999555,4.51449,2656.4,2655.8,0.7649]
[1739200999756,3.76479,2656.2,2655.9,0.11134379]
[1739200999972,4.51449,2656.4,2655.9,0.11134379]
[1739201000133,7.52912,2656.4,2655.9,0.14899129]
[1739201000338,3.76503,2656.1,2655.9,0.11134379]
[1739201000546,4.51503,2656.1,2655.6,8.86]
[1739201000752,3.76518,2656.0,2655.6,8.86]
[1739201000968,3.76503,2656.1,2655.7,0.11152974]
[1739201001175,6.76444,2656.5,2655.8,3.76524]
[1739201001465,3.76444,2656.5,2655.9,0.92584379]
[1739201001669,3.76462,2656.4,2655.9,0.92584379]
[1739201002088,2.67519552,2656.9,2655.9,0.92584379]
[1739201002391,3.76451,2656.4,2655.9,9.78584379]
[1739201002757,3.76445,2656.5,2655.9,9.78584379]
[1739201002957,3.76445,2656.5,2655.9,13.55102379]
[1739201003159,0.75,2657.0,2655.9,9.78584379]
[1739201003385,3.76423,2656.6,2655.9,13.55097379]
[1739201003588,0.75,2657.0,2655.9,9.78584379]
[1739201003589,3.76449,2656.4,2655.9,9.78584379]
[1739201004190,0.75,2657.0,2656.0,8.89764366]
[1739201004397,4.51365,2657.0,2656.3,3.76453]
[1739201004724,4.51365,2657.0,2656.1,3.76479]
[1739201004725,0.75,2657.0,2656.1,3.76479]
[1739201004881,0.75,2657.0,2656.4,0.11045968]
[1739201005194,3.76387,2656.9,2656.5,0.11036276]
[1739201005391,7.52748,2657.0,2656.5,0.92486276]
[1739201005560,3.76386,2656.9,2656.5,0.92486276]
[1739201005756,3.76394,2656.8,2656.5,0.11036276]
[1739201006105,3.74138008,2657.1,2655.9,5.25]
[1739201006106,3.76407,2656.7,2656.2,9.6745]
[1739201006276,3.76407,2656.7,2656.6,0.11026983]
[1739201006474,3.76407,2656.7,2656.2,9.6745]
[1739201006794,2.67519552,2656.9,2656.2,9.6745]
[1739201007004,3.7643,2656.6,2656.3,0.11054862]
[1739201007897,3.76392,2656.8,2656.3,0.11054862]
[1739201008099,3.76392,2656.8,2656.3,0.1481904]
[1739201008308,4.51332,2657.3,2656.7,3.76395]
[1739201008476,3.76292,2657.6,2656.9,7.52738]
[1739201008665,3.0,2657.6,2656.8,0.92455606]
[1739201008869,3.76346,2657.2,2657.0,0.10987026]
[1739201009198,3.76315,2657.4,2657.1,0.10977738]
[1739201009401,3.76324,2657.3,2657.1,0.10977738]
[1739201009568,3.76369,2657.0,2656.6,8.86]
[1739201009769,3.76391,2656.9,2656.5,0.8145]
[1739201009979,3.76392,2656.8,2656.6,0.11024188]
[1739201010177,3.76435,2656.5,2656.4,5.25]
[1739201010503,3.76435,2656.5,2656.4,5.36010042]
[1739201010707,3.76422,2656.6,2656.4,5.36010042]
[1739201011071,3.76435,2656.5,2656.4,5.36010042]
[1739201011301,7.18954552,2656.5,2656.4,0.11010042]
[1739201011476,7.73954552,2656.5,2656.4,0.11010042]
[1739201011682,3.76542,2655.8,2655.5,9.6745]
[1739201011990,3.76562,2655.6,2655.3,8.86]
[1739201012194,3.76562,2655.6,2655.2,0.8145]
[1739201013093,3.76597,2655.4,2655.2,0.8145]
[1739201013297,3.76597,2655.4,2655.1,8.86]
[1739201013469,3.76608,2655.3,2655.1,8.86]
[1739201013669,3.76608,2655.3,2654.9,0.8145]
[1739201013902,3.76623,2655.2,2654.6,4.58146]
[1739201014086,3.76608,2655.3,2654.6,4.58146]
[1739201014087,3.76608,2655.3,2654.7,3.76681]
[1739201014302,3.76608,2655.3,2654.6,4.58146]
[1739201014770,3.76608,2655.3,2654.6,4.58144]
[1739201015172,3.76608,2655.3,2654.6,8.34837]
[1739201015405,3.76582,2655.5,2654.9,3.76657]
[1739201015612,3.76582,2655.5,2654.8,3.76662]
[1739201015773,3.76592,2655.4,2654.8,3.76662]
[1739201015978,3.76614,2655.3,2654.6,4.58149]
[1739201016177,3.7663,2655.2,2654.6,4.58149]
[1739201016482,7.53163,2655.5,2654.8,3.76673]
[1739201016682,3.76578,2655.5,2654.8,3.76665]
[1739201016981,6.76555,2655.7,2654.8,3.76665]
[1739201017179,6.76555,2655.7,2655.1,3.76631]
[1739201017379,3.76563,2655.6,2655.1,3.80396919]
[1739201017621,3.76577,2655.5,2654.8,3.76668]
[1739201017803,7.53166,2655.5,2654.8,16.39332]
[1739201018007,3.76564,2655.6,2655.0,3.7664]
[1739201018230,3.42519552,2655.9,2655.1,0.0376592]
[1739201018520,3.765,2656.1,2655.4,3.7658]
[1739201018716,3.76469,2656.3,2655.6,3.7655]
[1739201018918,2.67519552,2656.8,2655.8,3.76523]
[1739201019119,3.76443,2656.5,2655.8,8.86]
[1739201019415,3.76475,2656.3,2655.8,8.86]
[1739201019918,3.76501,2656.1,2655.8,8.86]
[1739201020105,3.76501,2656.1,2655.6,0.7749]
[1739201020310,3.76518,2656.0,2655.5,8.86]
[1739201020499,3.76535,2655.8,2655.7,0.1115218]
[1739201020697,3.76535,2655.8,2655.6,0.11161479]
[1739201021019,3.76535,2655.8,2655.7,0.1115218]
[1739201021417,3.76535,2655.8,2655.3,4.54093]
[1739201021602,3.76535,2655.8,2655.7,0.1115218]
[1739201021920,3.76535,2655.8,2655.3,4.54093]
[1739201022096,3.76535,2655.8,2655.7,0.1115218]
[1739201022294,3.76492,2656.1,2655.5,3.76568]
[1739201022518,7.53038,2656.0,2655.7,0.1115218]
[1739201022701,3.76519,2656.0,2655.6,0.11161479]
[1739201023013,3.76535,2655.8,2655.3,4.54086]
[1739201023420,3.76551,2655.7,2655.3,0.7749]
[1739201023620,3.76552,2655.7,2655.1,12.62624]
[1739201023922,3.76513,2656.0,2655.4,3.76578]
[1739201024088,3.76513,2656.0,2655.5,3.76569]
[1739201024289,3.7652,2655.9,2655.4,3.76578]
[1739201024489,3.7652,2655.9,2655.4,7.53156]
[1739201024731,5.3410622,2656.3,2655.3,0.756]
[1739201025024,3.76499,2656.1,2655.5,3.76571]
[1739201025221,3.76499,2656.1,2655.6,3.76559]
[1739201025519,3.76414,2656.7,2656.2,3.76466]
[1739201025724,3.76414,2656.7,2656.1,3.76483]
[1739201026126,3.76414,2656.7,2656.2,3.76476]
[1739201026629,3.76414,2656.7,2656.1,7.52966]
[1739201026829,3.76414,2656.7,2656.1,3.76483]
[1739201026830,7.52828,2656.7,2656.1,3.76483]
[1739201027042,3.76409,2656.7,2656.1,3.7648]
[1739201027598,3.76409,2656.7,2655.9,9.616]
[1739201027897,3.76409,2656.7,2656.1,3.76488]
[1739201028098,3.76421,2656.6,2655.9,13.38111]
[1739201028294,3.76452,2656.4,2655.9,13.38111]
[1739201028546,3.76452,2656.4,2655.9,9.616]
[1739201028833,3.76496,2656.1,2655.9,8.86]
[1739201029144,3.76456,2656.4,2655.7,8.86]
[1739201029348,3.76456,2656.4,2655.9,3.76512]
[1739201029540,3.76456,2656.4,2655.9,7.53023]
[1739201029691,3.76428,2656.6,2655.9,3.76511]
[1739201029894,3.76428,2656.6,2656.1,3.76488]
[1739201030645,3.76453,2656.4,2655.7,13.38146]
[1739201030926,3.76474,2656.3,2655.7,13.38137]
[1739201031109,3.76431,2656.6,2656.0,3.76504]
[1739201031291,7.54498,2656.7,2656.1,3.76478]
[1739201031528,3.76386,2656.9,2656.3,3.76455]
[1739201031845,7.52774,2656.9,2656.3,3.76455]
[1739201031996,3.76394,2656.8,2656.3,3.76455]
[1739201032190,0.7809,2657.0,2656.5,3.76426]
[1739201032495,0.7809,2657.0,2656.4,0.79363964]
[1739201032496,3.76388,2656.9,2656.4,4.52048]
[1739201032954,0.7809,2657.0,2656.4,0.756]
[1739201033117,6.43875552,2657.1,2656.5,3.76423]
[1739201033298,6.43875552,2657.1,2656.5,7.5285]
[1739201033495,7.52714,2657.1,2656.5,3.76423]
[1739201033793,3.76351,2657.1,2656.5,3.76422]
[1739201034018,3.76351,2657.1,2656.6,3.76413]
[1739201034224,3.76351,2657.1,2656.6,12.62413]
[1739201035148,3.76351,2657.1,2656.6,8.86]
[1739201035349,3.76351,2657.1,2656.6,12.62415]
[1739201035498,3.76351,2657.1,2656.7,0.1098176]
[1739201036296,3.76392,2656.8,2656.7,0.1098176]
[1739201036935,3.76391,2656.9,2656.7,0.1098176]
[1739201037655,6.43877552,2657.1,2656.7,0.1098176]
[1739201037956,3.76379,2656.9,2656.7,0.1098176]
[1739201038150,6.43877552,2657.1,2656.7,0.1098176]
[1739201038649,3.76392,2656.8,2656.7,0.1098176]
[1739201039134,3.76429,2656.6,2656.4,5.25]
[1739201039344,3.76435,2656.5,2656.4,5.25]
[1739201039556,3.76435,2656.5,2656.2,8.86]
[1739201039851,4.53499,2656.6,2656.2,8.86]
[1739201040347,6.43912552,2656.8,2656.3,3.7646]
[1739201040650,3.76414,2656.7,2656.2,8.86]
[1739201040859,3.76445,2656.5,2656.2,8.86]
[1739201041134,3.76498,2656.1,2655.8,0.7733]
[1739201041432,3.76498,2656.1,2655.5,4.53897]
[1739201041740,3.76498,2656.1,2655.6,3.76561]
[1739201041923,2.67519552,2656.2,2655.7,3.7654]
[1739201042126,2.67519552,2656.2,2655.7,3.80305082]
[1739201042325,3.76473,2656.3,2655.7,7.56845082]
[1739201042538,3.76473,2656.3,2655.7,3.80305082]
[1739201042857,3.76473,2656.3,2655.7,7.56845082]
[1739201043515,3.76478,2656.2,2655.7,3.80305082]
[1739201043921,3.76478,2656.2,2655.7,7.56845082]
[1739201044259,4.53523,2656.4,2655.9,3.76511]
[1739201044424,3.76428,2656.6,2656.0,0.7733]
[1739201044620,3.76411,2656.7,2656.2,3.76467]
[1739201044953,7.52822,2656.7,2656.1,3.76483]
[1739201045308,7.52822,2656.7,2656.0,0.7733]
[1739201045309,3.76384,2656.9,2656.0,0.7733]
[1739201045639,3.76406,2656.7,2656.2,3.7647]
[1739201045839,3.76406,2656.7,2656.2,3.76467]
[1739201046146,3.76497,2656.1,2655.7,0.7733]
[1739201046319,3.76513,2656.0,2655.7,0.7733]
[1739201046514,3.76497,2656.1,2655.7,0.7733]
[1739201047130,3.76513,2656.0,2655.7,0.7733]
[1739201047503,3.76497,2656.1,2655.7,0.7733]
[1739201048134,3.76511,2656.0,2655.7,0.7733]
[1739201048642,7.96927778,2656.5,2655.7,0.7733]
[1739201048643,3.76471,2656.3,2655.7,0.7733]
[1739201048842,7.21034552,2656.5,2655.9,3.76508]
[1739201049048,3.76451,2656.4,2655.9,3.76508]
[1739201049267,3.76451,2656.4,2655.9,7.53021]
[1739201049449,3.76451,2656.4,2655.9,3.76508]
[1739201049758,3.76451,2656.4,2655.8,3.7653]
[1739201050029,3.0,2656.7,2655.9,3.76519]
[1739201050030,3.0,2656.5,2655.9,3.76519]
[1739201050182,6.7644,2656.5,2656.0,3.76503]
[1739201050336,6.7644,2656.5,2655.9,3.76519]
[1739201050337,3.0,2656.5,2655.7,4.53865]
[1739201050675,3.76467,2656.3,2655.8,3.76524]
[1739201050877,3.44589552,2656.8,2656.2,3.76476]
[1739201051078,6.43880552,2657.1,2656.4,0.7733]
[1739201051379,3.76373,2657.0,2656.4,0.7733]
[1739201051582,2.67519552,2657.1,2656.5,0.11036674]
[1739201051777,6.43878552,2657.1,2656.6,3.76417]
[1739201051984,3.76333,2657.3,2656.6,3.76412]
[1739201052156,3.76333,2657.3,2656.7,3.8741609]
[1739201052693,3.76333,2657.3,2656.8,3.76391]
[1739201052839,6.43834552,2657.4,2656.9,0.771]
[1739201053040,3.7633,2657.3,2656.9,0.88099509]
[1739201053239,3.76315,2657.4,2656.9,4.64476509]
[1739201053454,3.76315,2657.4,2656.9,0.88099509]
[1739201053660,7.52635,2657.4,2656.9,0.88099509]
[1739201053880,3.76281,2657.6,2656.9,4.64474509]
[1739201054059,3.76281,2657.6,2657.1,3.76344]
[1739201054259,10.52568,2657.6,2657.0,3.76351]
[1739201054477,6.76281,2657.6,2657.2,0.10971643]
[1739201054644,7.52573,2657.6,2657.1,0.10980931]
[1739201054840,3.76281,2657.6,2657.3,0.10926032]
[1739201055044,3.76307,2657.4,2657.2,0.10935319]
[1739201055245,3.76307,2657.4,2656.9,0.771]
[1739201055647,3.76307,2657.4,2656.9,4.5347]
[1739201056849,3.76296,2657.5,2657.0,3.76362]
[1739201057052,3.76311,2657.4,2656.9,4.53477]
[1739201057362,3.76287,2657.6,2656.9,0.771]
[1739201057560,3.76294,2657.5,2657.0,3.76363]
[1739201057890,3.76287,2657.6,2657.1,3.76341]
[1739201058261,3.76304,2657.5,2656.9,4.5347]
[1739201058850,3.7642,2656.6,2656.3,0.771]
[1739201059080,3.7642,2656.6,2656.0,0.771]
[1739201059081,3.76463,2656.3,2656.0,0.771]
[1739201059283,3.76491,2656.1,2656.0,0.771]
[1739201059487,3.76491,2656.1,2655.7,0.771]
[1739201059682,3.76458,2656.4,2655.7,0.771]
[1739201059889,6.43948552,2656.6,2655.9,3.76511]
[1739201060208,3.76454,2656.4,2655.9,3.76511]
[1739201060587,3.76438,2656.5,2655.9,3.76511]
[1739201060792,3.76359,2657.1,2656.1,0.771]
[1739201060954,3.76359,2657.1,2656.4,3.76441]
[1739201061156,2.67519552,2657.2,2656.7,0.771]
[1739201061358,2.67519552,2657.2,2656.7,4.53498]
[1739201061666,2.67519552,2657.2,2656.8,0.03763448]
[1739201061990,6.43857552,2657.2,2656.7,0.771]
[1739201062194,2.67519552,2657.2,2656.3,8.86]
[1739201062514,3.76401,2656.8,2656.4,0.771]
[1739201062706,2.67519552,2656.9,2656.4,0.771]
[1739201062993,6.43900552,2656.9,2656.4,0.771]
[1739201063166,3.76358,2657.1,2656.4,0.771]
[1739201063559,3.76379,2656.9,2656.4,0.771]
[1739201063754,3.76379,2656.9,2656.4,4.53547]
[1739201063979,3.76379,2656.9,2655.7,3.0]
[1739201063980,3.76449,2656.4,2656.1,0.771]
[1739201064187,2.67519552,2656.2,2655.3,0.771]
[1739201064382,6.44041552,2655.9,2655.3,9.631]
[1739201064580,3.76538,2655.8,2655.3,0.771]
[1739201065109,2.67519552,2655.6,2655.0,0.771]
[1739201065417,3.76601,2655.4,2655.0,0.771]
[1739201065612,3.76601,2655.4,2655.1,0.1036257]
[1739201065767,3.76578,2655.5,2655.1,0.1036257]
[1739201066179,3.76596,2655.4,2655.1,0.1036257]
[1739201066397,10.20665552,2655.6,2655.1,0.1036257]
[1739201066711,3.76618,2655.3,2655.1,0.1036257]
[1739201066921,3.76618,2655.3,2654.7,0.771]
[1739201066922,2.67519552,2655.3,2654.7,0.771]
[1739201067077,3.76619,2655.2,2654.7,0.771]
[1739201067558,3.76645,2655.1,2654.7,0.771]
[1739201067762,3.76635,2655.1,2654.7,0.771]
[1739201067982,3.76619,2655.2,2654.7,0.771]
[1739201068401,3.76674,2654.9,2654.7,0.771]
[1739201068569,3.76674,2654.9,2654.4,0.771]
[1739201068570,7.53348,2654.9,2654.4,0.771]
[1739201068781,3.76674,2654.9,2654.4,0.771]
[1739201068970,3.76703,2654.7,2654.4,0.771]
[1739201069278,3.76704,2654.6,2654.2,8.86]
[1739201069694,3.76721,2654.5,2654.2,8.86]
[1739201069904,3.76747,2654.3,2654.2,8.86]
[1739201070206,3.76733,2654.4,2653.8,4.53916]
[1739201071068,3.76748,2654.3,2653.8,4.53916]
[1739201071400,3.76733,2654.4,2653.8,4.53916]
[1739201071715,3.76756,2654.3,2653.8,0.771]
[1739201072670,7.53513,2654.3,2653.8,0.771]
[1739201072897,3.76756,2654.3,2653.8,0.771]
[1739201073172,3.76763,2654.2,2653.8,0.771]
[1739201073388,3.76756,2654.3,2653.8,0.771]
[1739201073591,6.44694497,2654.5,2653.8,0.771]
[1739201073784,7.53448,2654.5,2654.0,3.76788]
[1739201073983,7.53448,2654.5,2653.8,0.771]
[1739201073984,3.76721,2654.5,2653.8,4.53905]
[1739201074189,0.7996,2654.6,2653.8,4.53905]
[1739201074390,3.7676,2654.3,2653.8,4.53917]
[1739201074919,3.76748,2654.3,2653.8,4.53907]
[1739201075227,3.76748,2654.3,2653.8,4.5391]
[1739201075929,3.76779,2654.1,2653.8,0.771]
[1739201076278,3.76797,2654.0,2653.8,0.771]
[1739201076576,3.76818,2653.8,2653.7,0.0105552]
[1739201076771,3.76802,2654.0,2653.7,0.0105552]
[1739201077195,3.76817,2653.9,2653.7,0.0105552]
[1739201077573,3.76818,2653.8,2653.7,0.0105552]
[1739201078797,6.44777497,2653.9,2653.7,0.0105552]
[1739201079377,6.44740497,2654.2,2653.8,0.771]
[1739201079577,6.44734497,2654.2,2653.8,0.771]
[1739201080192,2.67973497,2654.2,2653.8,0.771]
[1739201080531,3.76752,2654.3,2653.9,0.1065763]
[1739201080702,3.76733,2654.4,2653.9,0.1065763]
[1739201080898,3.7676,2654.3,2653.9,0.1065763]
[1739201081104,3.76762,2654.2,2653.9,0.1065763]
[1739201081299,3.76753,2654.3,2653.9,0.1065763]
[1739201081500,3.76772,2654.2,2653.9,0.1065763]
[1739201081706,7.53546,2654.2,2653.9,0.1065763]
[1739201081926,3.76776,2654.1,2653.9,0.1065763]
[1739201082727,3.76769,2654.2,2653.9,0.1065763]
[1739201083316,2.67973497,2654.5,2654.0,3.76782]
[1739201083496,3.0,2654.7,2654.2,3.76748]
[1739201083896,3.0,2654.7,2654.3,0.10651178]
[1739201084310,3.0,2654.7,2654.1,3.76775]
[1739201084311,3.0,2654.7,2654.1,3.76765]
[1739201084505,3.76721,2654.5,2654.4,0.1064107]
[1739201084706,3.76711,2654.6,2653.9,3.76797]
[1739201085034,6.76691,2654.7,2654.1,7.53526]
[1739201085237,10.53391,2654.7,2654.1,3.76763]
[1739201085439,10.53391,2654.7,2654.2,0.10648489]
[1739201085609,3.76707,2654.6,2654.2,0.10648489]
[1739201086834,7.5342,2654.6,2654.0,3.76787]
[1739201087014,3.76707,2654.6,2654.1,3.76773]
[1739201087213,3.0,2654.7,2654.1,3.87428399]
[1739201087414,6.7669,2654.7,2654.2,3.7675]
[1739201087634,4.31619,2655.2,2654.3,0.91494204]
[1739201087635,2.67973497,2655.1,2654.3,0.91494204]
[1739201087959,0.2,2656.1,2654.3,0.91494204]
[1739201087960,6.44573497,2655.4,2654.9,0.7709]
[1739201088162,3.76605,2655.3,2654.9,0.7709]
[1739201088322,3.76605,2655.3,2655.0,0.10572042]
[1739201088857,3.76629,2655.2,2655.0,0.10572042]
[1739201089050,6.44606497,2655.1,2655.0,0.10572042]
[1739201089252,6.44606497,2655.1,2654.6,0.7709]
[1739201089448,3.76647,2655.0,2654.6,0.7709]
[1739201089762,3.76699,2654.7,2654.4,14.11]
[1739201090066,2.1766397,2654.8,2654.3,4.53836]
[1739201090240,2.1766397,2654.8,2654.4,3.76732]
[1739201090828,2.1766397,2654.8,2654.6,3.76702]
[1739201091164,3.76643,2655.1,2654.9,0.7709]
[1739201091165,2.1766397,2655.1,2654.9,0.7709]
[1739201092183,2.1766397,2655.1,2654.6,0.7709]
[1739201092462,2.1766397,2654.8,2654.4,14.8809]
[1739201092629,5.9438197,2654.5,2654.4,14.11]
[1739201092829,3.76755,2654.3,2654.1,0.7709]
[1739201093062,3.76741,2654.4,2654.1,0.7709]
[1739201093465,3.76747,2654.3,2653.8,4.53904]
[1739201093854,3.76747,2654.3,2653.8,4.53899]
[1739201094365,2.1766397,2654.5,2653.8,0.7709]
[1739201094540,5.9438497,2654.5,2654.0,3.7678]
[1739201095037,5.9438497,2654.5,2654.0,3.80547487]
[1739201095288,3.76734,2654.4,2653.9,3.76803]
[1739201095603,3.76742,2654.4,2654.1,0.10590626]
[1739201095811,3.76742,2654.4,2654.0,0.10599935]
[1739201096008,3.76742,2654.4,2654.2,0.10581317]
[1739201096204,3.76742,2654.4,2654.1,0.10590626]
[1739201096403,6.44699038,2654.5,2654.3,0.10572008]
[1739201096592,10.21427038,2654.5,2654.2,0.10581317]
[1739201096793,13.21427038,2654.5,2654.4,0.105627]
[1739201096981,3.76732,2654.4,2654.3,0.10572008]
[1739201097182,3.76732,2654.4,2653.8,0.7709]
[1739201097395,3.76778,2654.1,2653.8,0.7709]
[1739201097596,7.53562,2654.1,2653.7,0.0105552]
[1739201097904,2.67978038,2654.2,2653.7,0.0105552]
[1739201098110,6.44740038,2654.2,2653.7,3.7787952]
[1739201098922,3.0,2654.3,2653.8,0.0376779]
[1739201099124,6.44701038,2654.5,2653.9,3.76793]
[1739201099291,3.76733,2654.4,2653.9,3.76793]
[1739201099491,3.76733,2654.4,2654.0,3.76788]
[1739201099710,2.67978038,2654.5,2654.1,3.76774]
[1739201099910,2.67978038,2654.5,2654.0,3.76788]
[1739201100197,3.76735,2654.4,2654.0,3.76788]
[1739201100390,3.76755,2654.3,2653.8,4.53967]
[1739201100592,3.76735,2654.4,2653.7,0.0105552]
[1739201100593,2.67978038,2653.9,2653.7,0.0105552]
[1739201100923,3.76818,2653.8,2653.7,0.0105552]
[1739201101122,4.56548,2653.8,2653.7,0.0105552]
[1739201101323,7.56548,2653.8,2653.7,0.0105552]
[1739201102193,8.11548,2653.8,2653.7,0.0105552]
[1739201103897,3.7692,2653.1,2652.8,0.7956]
[1739201104097,3.7692,2653.1,2652.6,12.6298]
[1739201104298,3.7692,2653.1,2652.9,0.10731974]
[1739201104516,3.7692,2653.1,2652.6,12.6298]
[1739201104722,4.56646,2653.2,2653.0,0.10722657]
[1739201104912,4.56646,2653.2,2652.6,12.6298]
[1739201105231,11.88562,2653.2,2652.5,0.7956]
[1739201105428,2.67978038,2652.6,2652.2,0.7956]
[1739201105729,3.77027,2652.4,2652.2,0.7956]
[1739201106028,2.67978038,2652.6,2652.2,0.7956]
[1739201106029,3.77031,2652.3,2652.2,0.7956]
[1739201106214,3.77028,2652.4,2652.2,0.7956]
[1739201106419,10.21974038,2652.6,2652.2,0.7956]
[1739201106833,3.77013,2652.5,2652.2,0.7956]
[1739201107297,3.76966,2652.8,2652.2,0.7956]
[1739201107498,7.53935,2652.8,2652.2,4.56595]
[1739201107699,3.76989,2652.6,2652.2,0.7956]
[1739201107899,3.77002,2652.5,2652.2,0.7956]
[1739201108228,3.7702,2652.4,2651.9,12.82668334]
[1739201108433,3.47708038,2652.6,2651.9,9.85150334]
[1739201108735,3.7703,2652.4,2651.9,9.6556]
[1739201109104,6.44968038,2652.6,2651.9,13.42647]
[1739201109310,6.44968038,2652.6,2652.1,3.77059]
[1739201109508,3.77045,2652.3,2651.9,0.7956]
[1739201109911,3.0,2652.4,2651.9,0.7956]
[1739201110304,6.77017,2652.4,2652.0,0.10955083]
[1739201110639,3.77033,2652.3,2652.0,0.10955083]
[1739201110931,3.0,2652.4,2652.0,0.10955083]
[1739201111303,6.77017,2652.4,2652.0,0.10955083]
[1739201111498,3.0,2652.5,2652.0,0.10955083]
[1739201111804,3.77059,2652.1,2652.0,0.10955083]
[1739201112119,3.77059,2652.1,2651.5,8.86]
[1739201112120,3.77102,2651.8,2651.5,8.86]
[1739201112319,3.77117,2651.7,2651.4,0.7956]
[1739201112532,7.54194,2651.9,2651.4,0.7956]
[1739201113030,0.55,2652.1,2651.1,4.59125555]
[1739201113031,3.7713,2651.6,2651.1,4.59125555]
[1739201113337,3.77153,2651.5,2651.1,0.81936555]
[1739201113634,3.77153,2651.5,2651.1,0.8088]
[1739201113944,3.77121,2651.7,2651.1,4.58074]
[1739201114149,3.77111,2651.8,2651.3,3.77173]
[1739201114440,3.77117,2651.7,2651.1,4.58073]
[1739201114604,3.77133,2651.6,2651.1,4.58073]
[1739201114809,3.77133,2651.6,2651.1,0.8088]
[1739201115133,3.77184,2651.3,2650.8,8.86]
[1739201115327,3.77184,2651.3,2650.7,3.77253]
[1739201115537,3.77189,2651.2,2650.6,12.6327]
[1739201115844,3.77184,2651.3,2650.7,3.7725]
[1739201116141,3.77102,2651.8,2651.0,3.77208]
[1739201116327,3.77102,2651.8,2650.7,1.00479627]
[1739201116328,3.77125,2651.7,2651.1,3.772]
[1739201116719,2.67978038,2651.7,2650.9,3.77222]
[1739201116919,3.7717,2651.4,2650.7,18.88730627]
[1739201117141,3.7717,2651.4,2650.7,10.02727627]
[1739201117310,7.5434,2651.4,2650.8,3.77237]
[1739201117667,3.77169,2651.4,2650.9,3.77225]
[1739201117839,7.5422,2651.8,2651.3,0.7751]
[1739201118015,3.7711,2651.8,2651.3,0.7751]
[1739201118220,2.67978038,2652.0,2651.3,0.7751]
[1739201118517,6.45108038,2651.7,2651.1,3.77194]
[1739201118716,6.45108038,2651.7,2651.2,3.77187]
[1739201119111,2.67978038,2651.7,2651.3,3.77171]
[1739201119310,2.67978038,2651.7,2651.4,0.03771161]
[1739201119512,3.77143,2651.6,2651.0,4.54718]
[1739201119711,2.67978038,2651.7,2651.3,3.77161]
[1739201120016,2.67978038,2651.7,2651.2,3.7718]
[1739201120420,6.45094038,2651.7,2651.2,3.7718]
[1739201120747,2.67978038,2651.7,2651.3,3.77169]
[1739201121047,3.77107,2651.8,2651.4,0.03771149]
[1739201121211,3.77107,2651.8,2651.3,3.77169]
[1739201121746,6.45058038,2652.0,2651.5,0.7751]
[1739201121950,3.77052,2652.2,2651.7,3.77116]
[1739201122146,2.67978038,2652.0,2651.4,3.77159]
[1739201122449,0.8188,2651.9,2651.4,3.77157]
[1739201122650,6.45052038,2652.0,2651.3,0.7751]
[1739201122948,6.45052038,2652.0,2651.5,3.77135]
[1739201123750,2.67978038,2652.0,2651.6,3.77129]
[1739201123913,2.67978038,2652.0,2651.7,0.03770683]
[1739201124108,2.67978038,2652.0,2651.6,3.77129]